fUSD/lending_fUSD_20240426
["ID","MTS","AMOUNT","RATE_DAILY","PERIOD"]
[323685496,1714164646198,-500.0,0.00010958,2]
[323685498,1714164646207,-7986.88,0.00010958,2]
[323685500,1714164646216,-1534.63,0.00010958,2]
[323685502,1714164646226,-500.0,0.00010958,2]
[323685503,1714164646235,-500.0,0.00010958,2]
[323685505,1714164646244,-500.0,0.00010958,2]
[323685507,1714164646253,-150.0,0.00010958,2]
[323685509,1714164646262,-1025.42,0.00010958,2]
[323685510,1714164646271,-915.28,0.00010958,2]
[323685511,1714164646280,-500.0,0.00010958,2]
[323685512,1714164646289,-500.0,0.00010958,2]
[323685513,1714164646298,-500.0,0.00010958,2]
[323685514,1714164646307,-500.0,0.00010958,2]
[323685515,1714164646317,-500.0,0.00010958,2]
[323685516,1714164646326,-500.0,0.00010958,2]
[323685517,1714164646335,-504.41109502,0.00010958,2]
[323685518,1714164646344,-500.0,0.00010958,2]
[323685519,1714164646353,-500.0,0.00010958,2]
[323685520,1714164646362,-500.0,0.00010958,2]
[323685521,1714164646373,-500.0,0.00010958,2]
[323685522,1714164646383,-500.0,0.00010958,2]
[323685523,1714164646392,-511.14018939,0.00010958,2]
[323685524,1714164646402,-500.0,0.00010958,2]
[323685525,1714164646411,-2192.24,0.00010958,2]
[323685526,1714164646420,-500.0,0.00010958,2]
[323685527,1714164646430,-500.0,0.00010958,2]
[323685528,1714164646439,-500.0,0.00010958,2]
[323685529,1714164646450,-500.0,0.00010958,2]
[323685530,1714164646459,-500.44760964,0.00010958,2]
[323685531,1714164646468,-5294.1,0.00010958,2]
[323685532,1714164646479,-570.9,0.00010958,2]
[323685533,1714164646488,-500.0,0.00010958,2]
[323685534,1714164646497,-500.0,0.00010958,2]
[323685535,1714164646507,-500.0,0.00010958,2]
[323685536,1714164646516,-500.98604982,0.00010958,2]
[323685537,1714164646525,-500.0,0.00010958,2]
[323685538,1714164646535,-500.0,0.00010958,2]
[323685539,1714164646544,-500.0,0.00010958,2]
[323685540,1714164646554,-500.0,0.00010958,2]
[323685541,1714164646563,-1314.82,0.00010958,2]
[323685542,1714164646572,-500.0,0.00010958,2]
[323685543,1714164646582,-500.0,0.00010958,2]
[323685544,1714164646591,-500.0,0.00010958,2]
[323685545,1714164646600,-500.0,0.00010958,2]
[323685546,1714164646609,-1526.68,0.00010958,2]
[323685547,1714164646618,-588.04226593,0.00010958,2]
[323685548,1714164646627,-500.0,0.00010958,2]
[323685549,1714164646636,-500.0,0.00010958,2]
[323685550,1714164646645,-500.0,0.00010958,2]
[323685551,1714164646655,-500.0,0.00010958,2]
[323685552,1714164646664,-500.0,0.00010958,2]
[323685553,1714164646674,-500.0,0.00010958,2]
[323685554,1714164646683,-2748.33,0.00010958,2]
[323685555,1714164646692,-500.0,0.00010958,2]
[323685556,1714164646702,-902.76,0.00010958,2]
[323685557,1714164646711,-500.0,0.00010958,2]
[323685558,1714164646720,-500.0,0.00010958,2]
[323685559,1714164646731,-500.0,0.00010958,2]
[323685560,1714164646740,-500.0,0.00010958,2]
[323685561,1714164646749,-500.0,0.00010958,2]
[323685562,1714164646758,-500.0,0.00010958,2]
[323685563,1714164646767,-977.74,0.00010958,2]
[323685564,1714164646776,-3534.68,0.00010958,2]
[323685565,1714164646786,-500.0,0.00010958,2]
[323685566,1714164646795,-500.0,0.00010958,2]
[323685568,1714164646804,-500.0,0.00010958,2]
[323685569,1714164646813,-500.0,0.00010958,2]
[323685570,1714164646822,-500.0,0.00010958,2]
[323685571,1714164646831,-500.0,0.00010958,2]
[323685572,1714164646840,-500.0,0.00010958,2]
[323685573,1714164646849,-500.0,0.00010958,2]
[323685574,1714164646859,-535.77,0.00010958,2]
[323685575,1714164646868,-500.0,0.00010958,2]
[323685576,1714164646877,-500.0,0.00010958,2]
[323685577,1714164646887,-500.0,0.00010958,2]
[323685578,1714164646896,-500.0,0.00010958,2]
[323685579,1714164646905,-500.0,0.00010958,2]
[323685580,1714164646915,-500.0,0.00010958,2]
[323685581,1714164646924,-500.0,0.00010958,2]
[323685582,1714164646934,-500.0,0.00010958,2]
[323685583,1714164646945,-500.0,0.00010958,2]
[323685584,1714164646954,-500.0,0.00010958,2]
[323685585,1714164646963,-1202.3,0.00010958,2]
[323685586,1714164646972,-945.79,0.00010958,2]
[323685587,1714164646983,-500.0,0.00010958,2]
[323685588,1714164646992,-500.0,0.00010958,2]
[323685589,1714164647001,-500.0,0.00010958,2]
[323685590,1714164647010,-500.0,0.00010958,2]
[323685591,1714164647022,-1406.15,0.00010958,2]
[323685592,1714164647032,-2218.27,0.00010958,2]
[323685593,1714164647040,-543.78913507,0.00010958,2]
[323685594,1714164647049,-2204.6,0.00010958,2]
[323685595,1714164647059,-500.0,0.00010958,2]
[323685596,1714164647068,-281.8,0.00010958,2]
[323685597,1714164647077,-884.68,0.00010958,2]
[323685598,1714164647086,-500.0,0.00010958,2]
[323685599,1714164647095,-778.73,0.00010958,2]
[323685600,1714164647104,-1830.5,0.00010958,2]
[323685601,1714164647113,-500.0,0.00010958,2]
[323685602,1714164647122,-500.0,0.00010958,2]
[323685603,1714164647131,-508.46711328,0.00010958,2]
[323685604,1714164647140,-500.0,0.00010958,2]
[323685605,1714164647149,-3165.84,0.00010958,2]
[323685606,1714164647159,-500.0,0.00010958,2]
[323685607,1714164647168,-500.0,0.00010958,2]
[323685608,1714164647177,-500.0,0.00010958,2]
[323685609,1714164647186,-500.0,0.00010958,2]
[323685610,1714164647195,-500.0,0.00010958,2]
[323685611,1714164647204,-500.0,0.00010958,2]
[323685612,1714164647213,-500.0,0.00010958,2]
[323685613,1714164647222,-1269.86,0.00010958,2]
[323685614,1714164647232,-500.6977463,0.00010958,2]
[323685615,1714164647240,-506.61,0.00010958,2]
[323685616,1714164647249,-500.0,0.00010958,2]
[323685617,1714164647259,-4487.12,0.00010958,2]
[323685618,1714164647269,-1393.5,0.00010958,2]
[323685619,1714164647277,-500.0,0.00010958,2]
[323685620,1714164647286,-3381.79,0.00010958,2]
[323685621,1714164647295,-500.0,0.00010958,2]
[323685622,1714164647304,-500.0,0.00010958,2]
[323685623,1714164647314,-500.0,0.00010958,2]
[323685624,1714164647323,-3486.6,0.00010958,2]
[323685625,1714164647333,-500.0,0.00010958,2]
[323685626,1714164647344,-613.29,0.00010958,2]
[323685627,1714164647354,-7444.1,0.00010958,2]
[323685628,1714164647363,-632.92,0.00010958,2]
[323685629,1714164647373,-500.0,0.00010958,2]
[323685630,1714164647382,-500.0,0.00010958,2]
[323685631,1714164647391,-500.0,0.00010958,2]
[323685632,1714164647400,-500.0,0.00010958,2]
[323685633,1714164647409,-500.0,0.00010958,2]
[323685634,1714164647418,-1421.41,0.00010958,2]
[323685635,1714164647427,-500.0,0.00010958,2]
[323685636,1714164647437,-652.67,0.00010958,2]
[323685637,1714164647447,-500.0,0.00010958,2]
[323685638,1714164647456,-500.0,0.00010958,2]
[323685639,1714164647465,-500.0,0.00010958,2]
[323685640,1714164647474,-2365.66,0.00010958,2]
[323685641,1714164647483,-500.0,0.00010958,2]
[323685642,1714164647493,-500.0,0.00010958,2]
[323685643,1714164647502,-214.08159999,0.00010958,2]
[323685644,1714164647511,-500.0,0.00010958,2]
[323685645,1714164647520,-500.0,0.00010958,2]
[323685646,1714164647529,-500.0,0.00010958,2]
[323685647,1714164647538,-500.0,0.00010958,2]
[323685648,1714164647547,-500.0,0.00010958,2]
[323685649,1714164647555,-2502.34,0.00010958,2]
[323685650,1714164647565,-500.0,0.00010958,2]
[323685651,1714164647574,-766.13,0.00010958,2]
[323685652,1714164647583,-500.0,0.00010958,2]
[323685653,1714164647592,-500.0,0.00010958,2]
[323685654,1714164647602,-574.93370561,0.00010958,2]
[323685655,1714164647613,-500.0,0.00010958,2]
[323685656,1714164647623,-500.0,0.00010958,2]
[323685657,1714164647632,-2271.17,0.00010958,2]
[323685658,1714164647641,-500.0,0.00010958,2]
[323685659,1714164647650,-500.0,0.00010958,2]
[323685660,1714164647659,-500.0,0.00010958,2]
[323685661,1714164647668,-500.0,0.00010958,2]
[323685662,1714164647678,-500.0,0.00010958,2]
[323685663,1714164647686,-3685.12,0.00010958,2]
[323685664,1714164647696,-500.0,0.00010958,2]
[323685665,1714164647705,-3696.82,0.00010958,2]
[323685666,1714164647714,-2156.31,0.00010958,2]
[323685667,1714164647724,-1975.04,0.00010958,2]
[323685668,1714164647733,-500.0,0.00010958,2]
[323685669,1714164647743,-500.0,0.00010958,2]
[323685670,1714164647752,-961.8,0.00010958,2]
[323685671,1714164647762,-150.64843487,0.00010958,2]
[323685672,1714164647771,-740.23,0.00010958,2]
[323685673,1714164647781,-1725.75,0.00010958,2]
[323685674,1714164647790,-500.0,0.00010958,2]
[323685675,1714164647799,-500.0,0.00010958,2]
[323685676,1714164647808,-500.0,0.00010958,2]
[323685677,1714164647818,-500.0,0.00010958,2]
[323685678,1714164647827,-500.0,0.00010958,2]
[323685679,1714164647836,-16818.38,0.00010958,2]
[323685680,1714164647846,-500.0,0.00010958,2]
[323685681,1714164647855,-500.0,0.00010958,2]
[323685682,1714164647864,-500.0,0.00010958,2]
[323685683,1714164647874,-500.0,0.00010958,2]
[323685684,1714164647883,-4623.39,0.00010958,2]
[323685685,1714164647892,-500.0,0.00010958,2]
[323685686,1714164647901,-500.0,0.00010958,2]
[323685687,1714164647911,-500.0,0.00010958,2]
[323685688,1714164647922,-500.0,0.00010958,2]
[323685689,1714164647934,-1553.56,0.00010958,2]
[323685690,1714164647945,-500.0,0.00010958,2]
[323685691,1714164647954,-1553.56,0.00010958,2]
[323685692,1714164647964,-743.62,0.00010958,2]
[323685693,1714164647975,-500.0,0.00010958,2]
[323685694,1714164647985,-4732.66,0.00010958,2]
[323685695,1714164647994,-505.40307843,0.00010958,2]
[323685696,1714164648004,-500.0,0.00010958,2]
[323685697,1714164648015,-500.0,0.00010958,2]
[323685698,1714164648025,-502.13962029,0.00010958,2]
[323685699,1714164648035,-500.0,0.00010958,2]
[323685700,1714164648045,-500.0,0.00010958,2]
[323685701,1714164648054,-500.0,0.00010958,2]
[323685702,1714164648063,-500.0,0.00010958,2]
[323685703,1714164648073,-500.0,0.00010958,2]
[323685704,1714164648082,-500.0,0.00010958,2]
[323685705,1714164648091,-500.0,0.00010958,2]
[323685706,1714164648100,-500.0,0.00010958,2]
[323685707,1714164648110,-819.19,0.00010958,2]
[323685708,1714164648119,-2904.2,0.00010958,2]
[323685709,1714164648128,-500.0,0.00010958,2]
[323685710,1714164648137,-506.87442714,0.00010958,2]
[323685711,1714164648146,-568.79,0.00010958,2]
[323685712,1714164648156,-2745.33,0.00010958,2]
[323685713,1714164648166,-500.0,0.00010958,2]
[323685714,1714164648175,-1893.89,0.00010958,2]
[323685715,1714164648184,-500.0,0.00010958,2]
[323685716,1714164648193,-500.0,0.00010958,2]
[323685717,1714164648203,-500.0,0.00010958,2]
[323685718,1714164648212,-3011.35,0.00010958,2]
[323685719,1714164648221,-500.0,0.00010958,2]
[323685720,1714164648231,-500.0,0.00010958,2]
[323685721,1714164648240,-500.0,0.00010958,2]
[323685722,1714164648249,-500.81445411,0.00010958,2]
[323685723,1714164648258,-500.0,0.00010958,2]
[323685724,1714164648267,-500.0,0.00010958,2]
[323685725,1714164648276,-2267.18,0.00010958,2]
[323685726,1714164648285,-500.0,0.00010958,2]
[323685727,1714164648295,-2629.82,0.00010958,2]
[323685728,1714164648304,-500.0,0.00010958,2]
[323685729,1714164648314,-500.0,0.00010958,2]
[323685730,1714164648324,-500.0,0.00010958,2]
[323685731,1714164648333,-1211.38,0.00010958,2]
[323685732,1714164648342,-745.67,0.00010958,2]
[323685733,1714164648352,-500.0,0.00010958,2]
[323685734,1714164648361,-614.4,0.00010958,2]
[323685735,1714164648371,-971.13,0.00010958,2]
[323685736,1714164648380,-500.0,0.00010958,2]
[323685737,1714164648390,-500.0,0.00010958,2]
[323685738,1714164648399,-500.0,0.00010958,2]
[323685739,1714164648409,-1603.09,0.00010958,2]
[323685740,1714164648419,-563.8,0.00010958,2]
[323685741,1714164648428,-506.6598663,0.00010958,2]
[323685742,1714164648439,-2773.39,0.00010958,2]
[323685743,1714164648448,-974.87,0.00010958,2]
[323685744,1714164648458,-500.0,0.00010958,2]
[323685745,1714164648467,-500.0,0.00010958,2]
[323685746,1714164648477,-500.0,0.00010958,2]
[323685747,1714164648487,-1522.95,0.00010958,2]
[323685748,1714164648496,-5896.76,0.00010958,2]
[323685749,1714164648506,-1224.21,0.00010958,2]
[323685750,1714164648516,-500.0,0.00010958,2]
[323685751,1714164648525,-500.0,0.00010958,2]
[323685752,1714164648535,-500.0,0.00010958,2]
[323685753,1714164648545,-500.0,0.00010958,2]
[323685754,1714164648555,-500.0,0.00010958,2]
[323685755,1714164648566,-500.0,0.00010958,2]
[323685756,1714164648575,-501.86,0.00010958,2]
[323685757,1714164648585,-500.0,0.00010958,2]
[323685758,1714164648595,-955.97,0.00010958,2]
[323685759,1714164648605,-1294.68,0.00010958,2]
[323685760,1714164648614,-500.0,0.00010958,2]
[323685761,1714164648624,-500.0,0.00010958,2]
[323685762,1714164648633,-2160.99,0.00010958,2]
[323685763,1714164648643,-2575.1,0.00010958,2]
[323685764,1714164648653,-1931.55,0.00010958,2]
[323685765,1714164648663,-1653.29,0.00010958,2]
[323685766,1714164648673,-501.21491854,0.00010958,2]
[323685767,1714164648682,-500.0,0.00010958,2]
[323685768,1714164648691,-500.0,0.00010958,2]
[323685769,1714164648700,-322.51858577,0.00010958,2]
[323685770,1714164648710,-500.0,0.00010958,2]
[323685771,1714164648719,-1835.98,0.00010958,2]
[323685772,1714164648730,-500.0,0.00010958,2]
[323685773,1714164648739,-500.0,0.00010958,2]
[323685774,1714164648749,-500.0,0.00010958,2]
[323685775,1714164648759,-2886.79,0.00010958,2]
[323685776,1714164648770,-687.08,0.00010958,2]
[323685777,1714164648779,-500.0,0.00010958,2]
[323685778,1714164648789,-500.0,0.00010958,2]
[323685779,1714164648798,-500.0,0.00010958,2]
[323685780,1714164648808,-550.85667913,0.00010958,2]
[323685781,1714164648817,-500.0,0.00010958,2]
[323685782,1714164648826,-1083.15,0.00010958,2]
[323685783,1714164648836,-500.0,0.00010958,2]
[323685784,1714164648846,-1621.56,0.00010958,2]
[323685785,1714164648856,-523.25830865,0.00010958,2]
[323685786,1714164648866,-500.0,0.00010958,2]
[323685787,1714164648875,-500.0,0.00010958,2]
[323685788,1714164648884,-500.0,0.00010958,2]
[323685789,1714164648894,-500.0,0.00010958,2]
[323685790,1714164648903,-523.49,0.00010958,2]
[323685791,1714164648913,-500.0,0.00010958,2]
[323685792,1714164648922,-500.0,0.00010958,2]
[323685793,1714164648933,-648.41420551,0.00010958,2]
[323685794,1714164648945,-2371.14,0.00010958,2]
[323685795,1714164648954,-500.0,0.00010958,2]
[323685796,1714164648963,-2417.08,0.00010958,2]
[323685797,1714164648973,-500.0,0.00010958,2]
[323685798,1714164648983,-500.0,0.00010958,2]
[323685799,1714164648992,-500.0,0.00010958,2]
[323685800,1714164649002,-500.0,0.00010958,2]
[323685801,1714164649011,-500.0,0.00010958,2]
[323685802,1714164649021,-1069.06,0.00010958,2]
[323685803,1714164649030,-500.0,0.00010958,2]
[323685804,1714164649039,-500.0,0.00010958,2]
[323685805,1714164649048,-500.0,0.00010958,2]
[323685806,1714164649058,-500.0,0.00010958,2]
[323685807,1714164649067,-500.0,0.00010958,2]
[323685808,1714164649076,-287.64440832,0.00010958,2]
[323685809,1714164649086,-500.0,0.00010958,2]
[323685810,1714164649096,-834.36,0.00010958,2]
[323685811,1714164649106,-527.77,0.00010958,2]
[323685812,1714164649116,-1979.88,0.00010958,2]
[323685813,1714164649125,-2024.46,0.00010958,2]
[323685814,1714164649135,-500.0,0.00010958,2]
[323685815,1714164649144,-4658.72,0.00010958,2]
[323685816,1714164649154,-3189.0,0.00010958,2]
[323685817,1714164649163,-500.0,0.00010958,2]
[323685818,1714164649173,-500.0,0.00010958,2]
[323685819,1714164649182,-500.0,0.00010958,2]
[323685820,1714164649191,-517.6993529,0.00010958,2]
[323685821,1714164649201,-500.0,0.00010958,2]
[323685822,1714164649210,-500.0,0.00010958,2]
[323685823,1714164649220,-500.0,0.00010958,2]
[323685824,1714164649229,-500.0,0.00010958,2]
[323685825,1714164649238,-500.0,0.00010958,2]
[323685826,1714164649247,-500.0,0.00010958,2]
[323685827,1714164649257,-500.0,0.00010958,2]
[323685828,1714164649266,-500.0,0.00010958,2]
[323685829,1714164649275,-999.64,0.00010958,2]
[323685830,1714164649285,-500.0,0.00010958,2]
[323685831,1714164649294,-2532.22,0.00010958,2]
[323685832,1714164649304,-500.0,0.00010958,2]
[323685833,1714164649313,-500.0,0.00010958,2]
[323685834,1714164649323,-500.0,0.00010958,2]
[323685835,1714164649332,-500.0,0.00010958,2]
[323685836,1714164649341,-524.9,0.00010958,2]
[323685837,1714164649350,-500.0,0.00010958,2]
[323685838,1714164649360,-500.0,0.00010958,2]
[323685839,1714164649369,-500.0,0.00010958,2]
[323685840,1714164649378,-526.6,0.00010958,2]
[323685841,1714164649388,-1394.14,0.00010958,2]
[323685842,1714164649398,-500.0,0.00010958,2]
[323685843,1714164649407,-500.0,0.00010958,2]
[323685844,1714164649416,-500.0,0.00010958,2]
[323685845,1714164649427,-500.0,0.00010958,2]
[323685846,1714164649436,-874.57,0.00010958,2]
[323685847,1714164649446,-500.0,0.00010958,2]
[323685848,1714164649456,-500.0,0.00010958,2]
[323685849,1714164649465,-1940.76,0.00010958,2]
[323685850,1714164649474,-2941.83,0.00010958,2]
[323685851,1714164649484,-346.42,0.00010958,2]
[323685852,1714164649493,-456.58943483,0.00010958,2]
[323685853,1714164649502,-2139.91,0.00010958,2]
[323685854,1714164649512,-500.0,0.00010958,2]
[323685855,1714164649521,-500.0,0.00010958,2]
[323685856,1714164649530,-500.0,0.00010958,2]
[323685857,1714164649540,-500.0,0.00010958,2]
[323685858,1714164649550,-500.0,0.00010958,2]
[323685859,1714164649559,-500.0,0.00010958,2]
[323685860,1714164649569,-1444.44,0.00010958,2]
[323685861,1714164649578,-500.0,0.00010958,2]
[323685862,1714164649588,-500.0,0.00010958,2]
[323685863,1714164649598,-500.0,0.00010958,2]
[323685864,1714164649607,-567.82,0.00010959,2]
[323685865,1714164649617,-2000.0,0.00010959,3]
[323685866,1714164649626,-150.0,0.00010959,2]
[323685867,1714164649636,-2750.0,0.00011,3]
[323685868,1714164649646,-188.22313018,0.00011,2]
[323685869,1714164649655,-1597.32,0.00011018,2]
[323685870,1714164649665,-3139.98142415,0.00011044,2]
[323685871,1714164649675,-164.0271218,0.00011129,2]
[323685872,1714164649684,-1029.67189584,0.00011129,2]
[323685873,1714164649695,-201.70925852,0.00011129,2]
[323685874,1714164649705,-4411.7189185,0.00011129,2]
[323685875,1714164649714,-408.49724038,0.00011129,2]
[323685876,1714164649724,-1553.56,0.00011129,2]
[323685877,1714164649734,-500.0,0.0001113,2]
[323685878,1714164649743,-173.44820365,0.00011132,2]
[323685879,1714164649753,-174.27566945,0.00011132,2]
[323685880,1714164649763,-158.31,0.00011142,2]
[323685881,1714164649773,-315.98072623,0.00011145,2]
[323685882,1714164649782,-500.0,0.00011179,2]
[323685883,1714164649792,-3139.98142415,0.00011229,2]
[323685884,1714164649801,-22295.19991995,0.00011231,2]
[323685885,1714164649811,-1553.56,0.00011231,2]
[323685886,1714164649820,-408.36793413,0.00011232,2]
[323685887,1714164649830,-500.0,0.00011232,2]
[323685888,1714164649840,-503.10077948,0.00011232,2]
[323685889,1714164649850,-500.0,0.00011232,2]
[323685890,1714164650107,-500.0,0.00011232,2]
[323685891,1714164650121,-592.74,0.00011232,2]
[323685892,1714164650130,-500.0,0.00011232,2]
[323685893,1714164650140,-500.0,0.00011232,2]
[323685894,1714164650149,-500.0,0.00011232,2]
[323685895,1714164650158,-500.0,0.00011232,2]
[323685896,1714164650167,-500.0,0.00011232,2]
[323685897,1714164650176,-500.0,0.00011232,2]
[323685898,1714164650186,-500.0,0.00011232,2]
[323685899,1714164650195,-500.0,0.00011232,2]
[323685900,1714164650204,-500.0,0.00011232,2]
[323685901,1714164650213,-500.0,0.00011232,2]
[323685902,1714164650222,-500.0,0.00011232,2]
[323685903,1714164650233,-500.0,0.00011232,2]
[323685904,1714164650242,-503.56167469,0.00011232,2]
[323685905,1714164650252,-500.0,0.00011232,2]
[323685906,1714164650261,-500.0,0.00011232,2]
[323685907,1714164650270,-500.0,0.00011232,2]
[323685908,1714164650280,-500.0,0.00011232,2]
[323685909,1714164650289,-500.0,0.00011232,2]
[323685910,1714164650299,-500.0,0.00011232,2]
[323685911,1714164650308,-500.0,0.00011232,2]
[323685912,1714164650318,-500.0,0.00011232,2]
[323685913,1714164650327,-500.0,0.00011232,2]
[323685914,1714164650336,-623.84367722,0.00011232,2]
[323685915,1714164650346,-500.0,0.00011232,2]
[323685916,1714164650357,-312.64288008,0.00011232,2]
[323685917,1714164650367,-500.0,0.00011232,2]
[323685918,1714164650376,-500.0,0.00011232,2]
[323685919,1714164650386,-501.93914007,0.00011232,2]
[323685920,1714164650396,-500.0,0.00011232,2]
[323685921,1714164650405,-500.0,0.00011232,2]
[323685922,1714164650415,-500.0,0.00011232,2]
[323685923,1714164650424,-504.37049518,0.00011232,2]
[323685924,1714164650433,-500.0,0.00011232,2]
[323685925,1714164650443,-502.94673927,0.00011232,2]
[323685926,1714164650453,-500.0,0.00011232,2]
[323685927,1714164650462,-358.14344146,0.00011232,2]
[323685928,1714164650471,-500.0,0.00011232,2]
[323685929,1714164650481,-500.0,0.00011232,2]
[323685930,1714164650491,-617.1,0.00011232,2]
[323685931,1714164650501,-500.0,0.00011232,2]
[323685932,1714164650510,-500.0,0.00011232,2]
[323685933,1714164650520,-615.46,0.00011232,2]
[323685934,1714164650529,-500.0,0.00011232,2]
[323685935,1714164650539,-500.0,0.00011232,2]
[323685936,1714164650549,-500.0,0.00011232,2]
[323685937,1714164650558,-500.0,0.00011232,2]
[323685938,1714164650567,-500.0,0.00011232,2]
[323685939,1714164650576,-500.0,0.00011232,2]
[323685940,1714164650586,-500.0,0.00011232,2]
[323685941,1714164650596,-500.0,0.00011232,2]
[323685942,1714164650607,-500.0,0.00011232,2]
[323685943,1714164650616,-500.0,0.00011232,2]
[323685944,1714164650626,-501.96123762,0.00011232,2]
[323685945,1714164650636,-500.0,0.00011232,2]
[323685946,1714164650646,-500.0,0.00011232,2]
[323685947,1714164650656,-500.0,0.00011232,2]
[323685948,1714164650666,-500.0,0.00011232,2]
[323685949,1714164650676,-500.0,0.00011232,2]
[323685950,1714164650686,-410.47,0.00011232,2]
[323685951,1714164650696,-500.0,0.00011232,2]
[323685952,1714164650706,-500.0,0.00011232,2]
[323685953,1714164650716,-500.0,0.00011232,2]
[323685954,1714164650726,-500.0,0.00011232,2]
[323685955,1714164650735,-500.0,0.00011232,2]
[323685956,1714164650745,-500.0,0.00011232,2]
[323685957,1714164650755,-500.0,0.00011232,2]
[323685958,1714164650765,-500.0,0.00011232,2]
[323685959,1714164650775,-500.0,0.00011232,2]
[323685960,1714164650784,-500.0,0.00011232,2]
[323685961,1714164650794,-500.0,0.00011232,2]
[323685962,1714164650804,-500.0,0.00011232,2]
[323685963,1714164650813,-500.0,0.00011232,2]
[323685964,1714164650823,-500.0,0.00011232,2]
[323685965,1714164650833,-500.0,0.00011232,2]
[323685966,1714164650842,-500.0,0.00011232,2]
[323685967,1714164650852,-500.0,0.00011232,2]
[323685968,1714164650861,-500.0,0.00011232,2]
[323685969,1714164650871,-449.96811448,0.00011232,2]
[323685970,1714164650880,-500.0,0.00011232,2]
[323685971,1714164650890,-500.0,0.00011232,2]
[323685972,1714164650899,-500.0,0.00011232,2]
[323685973,1714164650909,-500.0,0.00011232,2]
[323685974,1714164650918,-500.0,0.00011232,2]
[323685975,1714164650928,-500.0,0.00011232,2]
[323685976,1714164650940,-500.0,0.00011232,2]
[323685977,1714164650950,-500.0,0.00011232,2]
[323685978,1714164650960,-500.0,0.00011232,2]
[323685979,1714164650970,-500.0,0.00011232,2]
[323685980,1714164650980,-500.0,0.00011232,2]
[323685981,1714164650989,-500.0,0.00011232,2]
[323685982,1714164650999,-500.0,0.00011232,2]
[323685983,1714164651008,-233.91,0.00011232,2]
[323685984,1714164651018,-500.0,0.00011232,2]
[323685985,1714164651027,-500.0,0.00011232,2]
[323685986,1714164651037,-500.0,0.00011232,2]
[323685987,1714164651046,-672.62,0.00011232,2]
[323685988,1714164651055,-500.0,0.00011232,2]
[323685989,1714164651065,-615.84,0.00011232,2]
[323685990,1714164651074,-500.0,0.00011232,2]
[323685991,1714164651084,-539.67231145,0.00011232,2]
[323685992,1714164651093,-344.72,0.00011232,2]
[323685993,1714164651103,-202.89787963,0.00011232,2]
[323685994,1714164651112,-500.0,0.00011232,2]
[323685995,1714164651121,-500.0,0.00011232,2]
[323685996,1714164651131,-660.73,0.00011232,2]
[323685997,1714164651141,-500.0,0.00011232,2]
[323685998,1714164651150,-500.0,0.00011232,2]
[323685999,1714164651159,-683.37,0.00011232,2]
[323686000,1714164651168,-500.0,0.00011232,2]
[323686001,1714164651177,-500.0,0.00011232,2]
[323686002,1714164651187,-506.91037649,0.00011232,2]